[Event "Superbet Blitz Poland 2022"]
[Site "Warsaw"]
[Date "2022.05.23"]
[Round "13.1"]
[White "Wojtaszek, Radoslaw"]
[Black "Aronian, Levon"]
[Result "1/2-1/2"]
[ECO "D27"]
[WhiteElo "2696"]
[BlackElo "2765"]
[Annotator "TA"]
[PlyCount "69"]
[EventDate "2022.05.22"]
[EventType "tourn"]
[EventCountry "POL"]
[SourceTitle "playchess.com"]
[Source "ChessBase"]
[SourceQuality "1"]
[TimeControl "300+2"]

{[%evp 14,69,27,24,19,30,19,37,35,-26,41,39,39,25,77,70,73,81,69,72,71,73,62,67,55,44,47,0,93,0,128,119,132,117,134,112,263,78,250,112,116,126,223,188,188,187,187,106,102,0,0,0,0,0,0,0,0,0]} 1. d4 {[%emt 0:00:01]} d5 {[%emt 0:00:01]} 2. c4 {[%emt 0:00:01]} dxc4 {[%emt 0:00:01]} 3. e3 {[%emt 0:00:02]} Nf6 {[%emt 0:00:02]} 4. Bxc4 {[%emt 0:00:01]} e6 {[%emt 0:00:01]} 5. Nf3 {[%emt 0:00:02]} c5 {[%emt 0:00:02]} 6. O-O {[%emt 0:00:03]} a6 {[%emt 0:00:01]} 7. Nc3 {[%emt 0:00:02]} b5 {[%emt 0:00:04]} 8. Be2 {[%emt 0:00:02]} Nbd7 {[%emt 0:00:11] D27: Queen's Gambit Accepted: Classical main line: 7 e4!? and 7 a4.} 9. d5 {[%emt 0:00:08]} exd5 {[%emt 0:00:02]} 10. Nxd5 {[%emt 0:00:02]} Bb7 {[%emt 0:00:01] White is slightly better.} 11. e4 {[%emt 0:00:16]} (11. Nxf6+ $14 Qxf6 12. Qc2) 11... Bxd5 {[%emt 0:00:28]} (11... Nxd5 $11 12. exd5 Bd6) 12. exd5 $14 {[%emt 0:00:02]} Bd6 {[%emt 0:00:01]} 13. a4 {[%emt 0:00:05] [#]} c4 $146 {[%emt 0:00:29]} (13... bxa4 $11 14. Rxa4 (14. Qxa4 O-O $14) 14... Nb6) ({Predecessor:} 13... b4 14. Bxa6 O-O 15. Bb5 Ne5 16. Bg5 h6 17. Bh4 Nxf3+ 18. Qxf3 Be5 {1-0 (75) Hoeksema,H (2405)-Hartmans,E (2250) Netherlands 1994}) 14. Nd4 $16 {[%emt 0:00:11]} O-O $1 {[%emt 0:00:05]} 15. axb5 {[%emt 0:00:17]} axb5 {[%emt 0:00:01]} 16. Rxa8 {[%emt 0:00:03]} Qxa8 {[%emt 0:00:01]} 17. Nxb5 {[%emt 0:00:02]} Bxh2+ {[%emt 0:00:02][%mdl 64] Decoy} 18. Kxh2 {[%emt 0:00:04]} Qb8+ {[%emt 0:00:01]} 19. d6 {[%emt 0:00:11]} Qxb5 {[%emt 0:00:01]} 20. Qd4 {[%emt 0:00:02]} (20. Kg1 $14) 20... Rc8 {[%emt 0:00:12]} (20... Re8 $1 $11 {remains equal.} 21. Be3 (21. Bxc4 $2 Qh5+ 22. Kg1 Re4 $19) 21... Re4) 21. Bf4 {[%emt 0:00:11]} (21. Be3 $16) 21... Qf5 {[%emt 0:00:55]} (21... Re8 $1 $11 22. Be3 (22. Qxc4 $2 Qxc4 23. Bxc4 Re4 $19) (22. Bxc4 $2 Qh5+ 23. Kg1 Re4 $19) 22... Re4) 22. Bxc4 {[%emt 0:00:46]} Ne4 {[%emt 0:00:05]} 23. Bg3 {[%emt 0:00:15] Active counter play!} Ndf6 {[%emt 0:00:02]} 24. Kg1 $36 {[%emt 0:00:13][%mdl 2048] Black must now prevent Bd3. White is on the roll.} h5 $2 {[%emt 0:00:34]} (24... Nxg3 $16 {was worth a try.} 25. fxg3 Qd7) 25. Re1 $2 {[%emt 0:00:32]} (25. Bd3 $18) 25... Qg4 $2 {[%emt 0:00:22]} (25... Nxg3 $16 26. fxg3 Rd8) 26. d7 {[%emt 0:00:53]} (26. Be5 $18 {and White stays clearly on top.} Nxd6 27. Qxd6 Rxc4 28. Bxf6 gxf6 29. Qxf6 (29. Re8+ Kg7 $14)) 26... Rd8 {[%emt 0:00:07]} 27. Bb5 {[%emt 0:00:32] A strong pair of Bishops.} h4 {[%emt 0:00:01]} (27... Nxg3 $16 {was called for.} 28. Qb6 Rxd7 29. Bxd7 (29. Qb8+ Kh7 $11) 29... Nxd7 30. Qd8+ Kh7) 28. Qb6 {[%emt 0:00:05]} hxg3 {[%emt 0:00:37]} 29. Qxd8+ {[%emt 0:00:03]} Kh7 {[%emt 0:00:01]} 30. f3 {[%emt 0:00:04]} (30. fxg3 $1 $18 {aiming for Qe7.} Qxg3 31. Rxe4 $1 {[%mdl 512]} (31. Re2 Qd6 $11) (31. Qa5 $2 Qf2+ 32. Kh1 Ng3+ 33. Kh2 Qf4 $19) 31... Nxe4 32. Qb6) 30... Qh5 {[%emt 0:00:07] [#] ( -> ...Qc5+)} 31. fxe4 {[%emt 0:00:07]} (31. Bd3 {gets mated.} Qh2+ 32. Kf1 Qh1+ 33. Ke2 Qxg2+ 34. Ke3 Qf2+ 35. Kf4 g5+ 36. Kf5 Qc5#) (31. Qb6 $1 $16 Nxd7 32. Bxd7 Qh2+ 33. Kf1 Nd2+ 34. Ke2 Qxg2+ 35. Kd3 Nxf3 36. Bf5+ (36. Re2 Qf1 $16) 36... g6 {[#]} 37. Bxg6+ $1 {[%mdl 512]} (37. Re2 Qf1 $16) (37. Re7 Qd2+ 38. Kc4 Qf4+ 39. Kb3 Qxf5 $17) 37... Kg7 38. Re7 (38. Re2 Qf1 $11) 38... Qd2+ 39. Kc4 Qf4+ 40. Kb3 (40. Be4 Qc1+ 41. Kd3 Qf1+ 42. Kc3 Qe1+ 43. Kc2 Qe2+ 44. Kc3 Qe1+ 45. Kd3 Qf1+ 46. Kc3 Qe1+ $11)) 31... Qc5+ $11 {[%emt 0:00:13] The position is equal.} 32. Kh1 {[%emt 0:00:07]} Qh5+ {[%emt 0:00:05]} 33. Kg1 {[%emt 0:00:00]} Qc5+ {[%emt 0:00:05]} 34. Kh1 {[%emt 0:00:01]} Qh5+ {[%emt 0:00:04]} 35. Kg1 {[%emt 0:00:46] Weighted Error Value: White=0.45/Black=0.50} 1/2-1/2

[Event "Superbet Blitz Poland 2022"]
[Site "Warsaw"]
[Date "2022.05.23"]
[Round "13.2"]
[White "Rapport, Richard"]
[Black "Duda, Jan-Krzysztof"]
[Result "0-1"]
[ECO "C47"]
[WhiteElo "2776"]
[BlackElo "2750"]
[Annotator "TA"]
[PlyCount "108"]
[EventDate "2022.05.22"]
[EventType "tourn"]
[EventCountry "POL"]
[SourceTitle "playchess.com"]
[Source "ChessBase"]
[SourceQuality "1"]
[TimeControl "300+2"]

{[%evp 9,108,0,0,0,0,0,13,19,9,11,18,10,12,21,10,25,22,7,10,16,16,9,50,27,31,33,22,22,66,60,75,73,84,15,20,-8,-8,-117,-123,-139,-129,-174,-124,-268,-255,-268,-263,-345,-336,-335,-344,-322,-332,-323,-316,-318,-317,-405,-403,-373,-364,-408,-402,-406,-358,-658,-642,-604,-596,-5816,-5861,-6170,-371,-371,-290,-371,-370,-356,-346,-299,-64,-65,0,-254,-65,-65,-65,-65,-60,-64,-62,-351,-338,-753,-562,-760,-760,-753,-745,-698,-650]} 1. e4 {[%emt 0:00:02]} e5 {[%emt 0:00:02]} 2. Nf3 {[%emt 0:00:03]} Nc6 {[%emt 0:00:01]} 3. Nc3 {[%emt 0:00:02]} Nf6 {[%emt 0:00:01]} 4. a4 {[%emt 0:00:00]} d5 {[%emt 0:00:07]} 5. Bb5 {[%emt 0:00:02] [#]} d4 $146 {[%emt 0:00:37]} ({Predecessor:} 5... Nxe4 6. Nxe5 Qf6 7. Nf3 Be6 8. Qe2 Qg6 9. Nh4 Qf6 10. Nf3 Qg6 11. Nxe4 dxe4 {0-1 (41) Van Foreest,J (2629)-Smeets,J (2608) Amstelveen 2017}) 6. Ne2 {[%emt 0:00:02] C47: Scotch Four Knights and Four Knights with 4 g3.} Bd6 {[%emt 0:00:01]} 7. d3 {[%emt 0:00:02]} Bd7 {[%emt 0:00:07]} 8. Ng3 {[%emt 0:00:10] The position is equal.} a6 {[%emt 0:01:00]} 9. Bc4 {[%emt 0:00:13]} h6 {[%emt 0:00:06]} 10. O-O {[%emt 0:00:06]} O-O {[%emt 0:00:02]} 11. Bd2 {[%emt 0:00:04]} Re8 {[%emt 0:00:12]} 12. h3 {[%emt 0:00:06]} Be6 {[%emt 0:00:02]} 13. Bxe6 {[%emt 0:00:08]} Rxe6 {[%emt 0:00:01]} 14. a5 {[%emt 0:00:05]} Bf8 {[%emt 0:00:10]} 15. Nh2 {[%emt 0:00:05]} g6 {[%emt 0:00:19]} 16. Kh1 {[%emt 0:00:06]} Bg7 {[%emt 0:00:01]} 17. f4 {[%emt 0:00:03]} exf4 {[%emt 0:00:02]} 18. Bxf4 {[%emt 0:00:01]} h5 {[%emt 0:00:13]} 19. Nf3 {[%emt 0:00:07]} Nd7 {[%emt 0:00:06]} 20. Ne2 {[%emt 0:00:28]} Nde5 {[%emt 0:00:32]} 21. Qe1 {[%emt 0:00:08]} (21. Bxe5 $16 Bxe5 22. c3) 21... Nxf3 {[%emt 0:00:12]} 22. gxf3 {[%emt 0:00:02]} Qd7 {[%emt 0:00:11]} 23. Qg3 {[%emt 0:00:05] [#]} (23. Bd2 $11 {keeps the balance.}) 23... Nb4 $1 $17 {[%emt 0:00:04]} 24. Rac1 {[%emt 0:00:21]} Rc6 {[%emt 0:00:01]} 25. Rg1 {[%emt 0:00:40]} Nxc2 {[%emt 0:00:03]} ({Black should try} 25... Rc5 $19 26. Rg2 Rxc2 27. Rxc2 Nxc2) 26. h4 {[%emt 0:00:25]} (26. Bd2 $17) 26... Nb4 $19 {[%emt 0:00:09][%cal Bc2b4,Bb4d3,Bd3f2][%mdl 32]} 27. Rxc6 {[%emt 0:00:05]} Qxc6 {[%emt 0:00:03]} (27... Nxc6 $2 28. Bxc7 Nb4 29. Nc1 $19) 28. Be5 {[%emt 0:00:05]} Nxd3 {[%emt 0:00:33]} 29. Bxg7 {[%emt 0:00:03]} Kxg7 {[%emt 0:00:01]} 30. Nxd4 {[%emt 0:00:02]} Qf6 {[%emt 0:00:01]} 31. Nf5+ {[%emt 0:00:12]} Kh7 {[%emt 0:00:05]} 32. Ne3 {[%emt 0:00:09]} Qxb2 {[%emt 0:00:35] aiming for ...Nf2+.} 33. Qxc7 {[%emt 0:00:18]} Nf2+ {[%emt 0:00:01]} 34. Kh2 {[%emt 0:00:03] [#]} Ng4+ $1 {[%emt 0:00:05]} 35. Kh3 {[%emt 0:00:01]} Nxe3 {[%emt 0:00:02]} (35... Qb3 $2 36. fxg4 Qxe3+ 37. Kh2 Qf2+ 38. Kh3 $19) 36. Qxf7+ {[%emt 0:00:02]} Qg7 {[%emt 0:00:02]} 37. Qb3 {[%emt 0:00:01]} (37. Qxg7+ Kxg7 38. Rc1) 37... Qd7+ {[%emt 0:00:03]} 38. Kg3 {[%emt 0:00:01]} Qc7+ {[%emt 0:00:03]} 39. f4 {[%emt 0:00:02]} Ng4 {[%emt 0:00:03]} 40. Rb1 {[%emt 0:00:01]} Rd8 $2 {[%emt 0:00:04]} (40... Kh6 {( -> ...Qc5)} 41. Rf1 Rd8) 41. Qxb7 {[%emt 0:00:02]} Rd3+ {[%emt 0:00:01]} 42. Kg2 {[%emt 0:00:01]} Qxb7 {[%emt 0:00:02]} 43. Rxb7+ {[%emt 0:00:01][%mdl 4096] Endgame KRN-KR} Kh6 {[%emt 0:00:01]} 44. Rb6 {[%emt 0:00:01]} Rd2+ $2 {[%emt 0:00:05]} (44... Re3 $19 45. f5 Rxe4) 45. Kg3 {[%emt 0:00:01]} Rd3+ $2 {[%emt 0:00:06]} (45... Kg7 $15 46. Rxa6 Rd3+ 47. Kg2 Nf6 48. Ra7+ Kf8 49. Ra8+ Kf7 50. Ra7+ Kf8) 46. Kg2 {[%emt 0:00:01]} Kg7 $2 {[%emt 0:00:03]} (46... Re3 $19 47. f5 Rxe4) 47. Rxa6 $15 {[%emt 0:00:01]} Nf6 {[%emt 0:00:04]} 48. Ra7+ {[%emt 0:00:05]} Kf8 {[%emt 0:00:01]} 49. a6 {[%emt 0:00:01]} Ra3 {[%emt 0:00:02]} ({Don't play} 49... Nxe4 50. Rb7 $16) 50. e5 {[%emt 0:00:04][%mdl 8192]} (50. Ra8+ $15 Kf7 51. a7) 50... Nd5 $19 {[%emt 0:00:01]} 51. Kh2 $2 {[%emt 0:00:07]} (51. Kf2 Nxf4 52. Kg1) 51... Nxf4 {[%emt 0:00:01] And now ...Ke8 would win. Black is clearly winning.} 52. Ra8+ {[%emt 0:00:07]} Kf7 {[%emt 0:00:01]} 53. a7 {[%emt 0:00:01]} Ne6 {[%emt 0:00:01]} 54. Kg2 {[%emt 0:00:02]} Nc7 {[%emt 0:00:06] Weighted Error Value: White=0.68/Black=0.36} 0-1

[Event "Superbet Blitz Poland 2022"]
[Site "Warsaw"]
[Date "2022.05.23"]
[Round "13.3"]
[White "Caruana, Fabiano"]
[Black "Korobov, Anton"]
[Result "1-0"]
[ECO "E73"]
[WhiteElo "2786"]
[BlackElo "2671"]
[Annotator "TA"]
[PlyCount "87"]
[EventDate "2022.05.22"]
[EventType "tourn"]
[EventCountry "POL"]
[SourceTitle "playchess.com"]
[Source "ChessBase"]
[SourceQuality "1"]
[TimeControl "300+2"]

{[%evp 12,87,59,38,45,29,48,40,50,45,48,40,45,0,0,0,0,0,129,130,125,124,120,118,104,22,18,25,25,27,155,143,141,125,191,175,193,190,162,142,280,24,64,25,134,125,127,106,146,158,280,312,387,306,412,397,714,608,1418,1016,4960,5173,4782,4710,1027,3735,2479,2112,1670,1603,29972,29973,29978,29979,29983,29980,29987,29988]} 1. c4 {[%emt 0:00:02]} Nf6 {[%emt 0:00:06]} 2. Nc3 {[%emt 0:00:02]} g6 {[%emt 0:00:01]} 3. e4 {[%emt 0:00:01]} d6 {[%emt 0:00:02]} 4. d4 {[%emt 0:00:01]} Bg7 {[%emt 0:00:01]} 5. Be2 {[%emt 0:00:02]} O-O {[%emt 0:00:03]} 6. Be3 {[%emt 0:00:01]} Nbd7 {[%emt 0:00:05]} 7. h4 {[%emt 0:00:24]} c5 {[%emt 0:00:10] E73: King's Indian: Averbakh Variation without 6...c5.} 8. d5 {[%emt 0:00:07]} b5 {[%emt 0:00:04]} 9. cxb5 {[%emt 0:00:03]} a6 {[%emt 0:00:02] White is slightly better.} 10. a4 {[%emt 0:00:08]} Qa5 {[%emt 0:00:21]} 11. Bd2 $1 {[%emt 0:00:12]} axb5 {[%emt 0:00:46]} 12. Nxb5 {[%emt 0:00:11]} Qb6 {[%emt 0:00:04]} 13. Qc2 {[%emt 0:00:24]} Ba6 $1 {[%emt 0:00:17]} 14. Nf3 {[%emt 0:00:40] [#]} Ne8 $146 {[%emt 0:00:26]} (14... Bxb5 $11 15. Bxb5 Qxb5 16. axb5 Rxa1+ 17. Bc1 Nxe4) ({Predecessor:} 14... Nxe4 15. Qxe4 Bxb5 16. Bxb5 Qxb5 17. axb5 Rxa1+ 18. Ke2 Rxh1 19. Qxe7 Nf6 20. Qxd6 Rb1 {0-1 (29) Coleman,T (2333)-Bernadskiy,V (2619) Chess.com INT 2020}) 15. O-O $16 {[%emt 0:00:10]} Nc7 {[%emt 0:00:03][%cal Rc7b5]} 16. Nxc7 {[%emt 0:00:27]} Qxc7 {[%emt 0:00:01]} 17. Bxa6 {[%emt 0:00:02]} Rxa6 {[%emt 0:00:02]} 18. b4 {[%emt 0:00:26]} Bxa1 $11 {[%emt 0:00:09]} 19. Rxa1 {[%emt 0:00:02]} Rb8 $1 {[%emt 0:00:25]} 20. Nd4 {[%emt 0:00:07][%cal Bf3d4,Bd4c6,Bc6e7,Be7c6][%mdl 32]} Qb7 {[%emt 0:00:17]} (20... Qc8 $11 {keeps the balance.} 21. b5 cxd4 22. Qxc8+ Rxc8 23. bxa6 Nc5) 21. Nc6 $16 {[%emt 0:00:07]} cxb4 {[%emt 0:00:17]} 22. Nxe7+ {[%emt 0:00:23]} Kf8 {[%emt 0:00:19]} (22... Kg7 $16) 23. Nc6 $18 {[%emt 0:00:04]} Rc8 {[%emt 0:00:08]} 24. Qb2 {[%emt 0:00:24][%cal Rb2h8] Inhibits Ne5.} ({Don't take} 24. Bxb4 $6 Raxc6 25. dxc6 Qxb4 $14) 24... f6 {[%emt 0:00:01]} 25. Bxb4 {[%emt 0:00:05]} Kf7 {[%emt 0:00:01] [#]} (25... Kg7 $16 {is a better defense.}) 26. Qd4 $2 {[%emt 0:00:32]} (26. Qa2 $1 $18) 26... Ne5 $11 {[%emt 0:00:07]} 27. Bc3 {[%emt 0:00:01] Threatens to win with f4. 0x0.001ab50df5fddp-1022s more active pieces.} Qb6 {[%emt 0:00:17] White stays focused until the end.} (27... Ke8 $1 $11) 28. Qxb6 $16 {[%emt 0:00:02] Dancing on a razor blade.} ({But not} 28. Nxe5+ $6 dxe5 29. Qxb6 Rxb6 $11) 28... Rxb6 {[%emt 0:00:01]} 29. Bxe5 {[%emt 0:00:05]} dxe5 {[%emt 0:00:24][%mdl 4096] Endgame KRR-KRN} 30. a5 {[%emt 0:00:01]} Ra6 {[%emt 0:00:01]} (30... Rb3 $16 {might work better.} 31. a6 Ra8) 31. Rb1 $18 {[%emt 0:00:10]} Rc7 {[%emt 0:00:08] Against Rb7} 32. g4 {[%emt 0:00:11] [#] Strongly threatening Rb6.} h5 {[%emt 0:00:05]} 33. g5 {[%emt 0:00:03] Rb6 is the strong threat.} fxg5 $2 {[%emt 0:00:06]} (33... Rcxc6 34. Rb7+ Kf8) 34. hxg5 {[%emt 0:00:01]} Rcxc6 {[%emt 0:00:04]} 35. dxc6 {[%emt 0:00:01][%cal Bd5c6,Bc6c7][%mdl 32]} Rxa5 {[%emt 0:00:08] KR-KR} 36. Rc1 {[%emt 0:00:05] White threatens c7 and mate.} Ra8 {[%emt 0:00:03]} 37. c7 {[%emt 0:00:01]} Rc8 {[%emt 0:00:01]} 38. Rc6 {[%emt 0:00:01]} (38. Kh2 $142 Ke6 39. Rc6+ Kf7 40. Kg3) 38... Kg7 {[%emt 0:00:02]} 39. Kg2 {[%emt 0:00:04][%cal Of2f4] And now f4! would win.} Kf7 {[%emt 0:00:01]} 40. Kg3 {[%emt 0:00:01]} Kg7 {[%emt 0:00:01]} 41. f4 {[%emt 0:00:03] White mates.} exf4+ {[%emt 0:00:01]} 42. Kxf4 {[%emt 0:00:01]} Kf7 {[%emt 0:00:01]} 43. Ke5 {[%emt 0:00:07]} h4 {[%emt 0:00:04]} 44. Kd6 {[%emt 0:00:02] Weighted Error Value: White=0.28 (precise) /Black=0.51} 1-0

[Event "Superbet Blitz Poland 2022"]
[Site "Warsaw"]
[Date "2022.05.23"]
[Round "13.4"]
[White "So, Wesley"]
[Black "Gavrilescu, David"]
[Result "1-0"]
[ECO "D35"]
[WhiteElo "2766"]
[BlackElo "2518"]
[Annotator "TA"]
[PlyCount "127"]
[EventDate "2022.05.22"]
[EventType "tourn"]
[EventCountry "POL"]
[SourceTitle "playchess.com"]
[Source "ChessBase"]
[SourceQuality "1"]
[TimeControl "300+2"]

{[%evp 12,127,34,25,31,41,48,33,36,34,14,22,18,36,73,6,3,2,64,72,186,100,91,89,116,77,84,71,84,55,56,65,65,62,63,33,86,76,127,114,154,150,154,145,204,193,199,109,112,113,125,119,117,113,116,133,121,106,167,155,304,289,303,297,296,281,266,283,229,0,256,0,237,147,214,175,391,398,381,383,391,396,385,375,334,358,331,322,430,438,2047,1949,5616,709,29967,29969,5608,641,1041,484,371,0,1164,914,1016,1016,675,668,12804,12803,6904,9817,3621,2341,5742,5102,29991,29992]} 1. c4 {[%emt 0:00:02]} e6 {[%emt 0:00:01]} 2. Nc3 {[%emt 0:00:02]} d5 {[%emt 0:00:01]} 3. d4 {[%emt 0:00:00]} Nf6 {[%emt 0:00:02]} 4. cxd5 {[%emt 0:00:02]} exd5 {[%emt 0:00:01]} 5. Bg5 {[%emt 0:00:01]} Bb4 {[%emt 0:00:02]} 6. e3 {[%emt 0:00:01]} h6 {[%emt 0:00:01]} 7. Bh4 {[%emt 0:00:01]} g5 {[%emt 0:00:02] D35: Queen's Gambit Declined: Exchange Variation.} 8. Bg3 {[%emt 0:00:01]} Ne4 {[%emt 0:00:01]} 9. Nge2 {[%emt 0:00:01]} h5 {[%emt 0:00:02] White is slightly better.} 10. h4 {[%emt 0:00:01]} Nxg3 {[%emt 0:00:01]} 11. Nxg3 {[%emt 0:00:01]} gxh4 {[%emt 0:00:02]} 12. Nxh5 {[%emt 0:00:01]} Qg5 {[%emt 0:00:04] [#]} 13. Nf4 {[%emt 0:01:15]} (13. Qa4+ $1 $16 Nc6 14. Nf4) 13... c6 $1 $11 {[%emt 0:00:01] [#]} 14. Qa4 $146 {[%emt 0:00:30]} ({Predecessor:} 14. Bd3 Bd6 15. Nce2 Bg4 16. f3 Be6 17. Qb3 b5 18. g4 h3 19. Rh2 Qh4+ 20. Kd2 {1-0 (63) Sturua,Z (2525)-Furman,B (2225) Porto 2014}) 14... Bxc3+ {[%emt 0:00:35]} (14... Bd6 $11) 15. bxc3 $14 {[%emt 0:00:01]} Bf5 {[%emt 0:00:32]} (15... Nd7 $16) 16. Qb4 {[%emt 0:00:24]} (16. Nxd5 $18 {aiming for Nc7+.} Qd8 17. Nf4) 16... b6 $16 {[%emt 0:00:33]} 17. c4 {[%emt 0:00:16]} dxc4 {[%emt 0:00:06]} 18. Qxc4 {[%emt 0:00:05][%cal Og2g3]} Rh6 {[%emt 0:00:09]} 19. Be2 {[%emt 0:00:19]} Be4 {[%emt 0:00:02]} 20. Bf3 {[%emt 0:00:06]} Bxf3 {[%emt 0:00:05]} 21. gxf3 {[%emt 0:00:01]} Nd7 {[%emt 0:00:02]} 22. Ke2 {[%emt 0:00:01]} Qf5 {[%emt 0:00:17]} 23. a4 {[%emt 0:00:08]} Kf8 {[%emt 0:00:28]} ({Black should play} 23... Rb8 $14) 24. Rag1 {[%emt 0:00:12][%cal Ba1g1,Bg1g4,Bg4f4,Bf4c4,Bc4c6][%mdl 32] White is more active.} Re8 {[%emt 0:00:02]} (24... b5 $142 25. axb5 Qxb5 26. Qxb5 cxb5) 25. Rg4 {[%emt 0:00:03]} h3 {[%emt 0:00:45]} 26. Rxh3 {[%emt 0:00:10]} Rxh3 {[%emt 0:00:02]} 27. Nxh3 {[%emt 0:00:01] Dancing on a razor blade.} c5 {[%emt 0:00:01] [#]} (27... Nf6 $16 28. Rh4 (28. Rf4 Qd5 $16) 28... Qd5) 28. Rf4 $1 $18 {[%emt 0:00:31]} Qe6 {[%emt 0:00:11] [#]} 29. dxc5 $1 {[%emt 0:00:17]} Qxc4+ $16 {[%emt 0:00:12]} 30. Rxc4 {[%emt 0:00:01]} Nxc5 $18 {[%emt 0:00:01][%mdl 4096] Endgame KRN-KRN} 31. Ng5 {[%emt 0:00:01]} Ke7 {[%emt 0:00:40]} 32. Ne4 {[%emt 0:00:09]} Ne6 {[%emt 0:00:01]} 33. f4 {[%emt 0:00:04]} f5 {[%emt 0:00:22]} 34. Ng3 {[%emt 0:00:01]} Kf6 {[%emt 0:00:01]} (34... Rf8 $16) 35. Rc6 {[%emt 0:00:08] Threatens to win with Kf3.} Rd8 {[%emt 0:00:01]} (35... Rf8 $16 {was necessary.} 36. a5 Ke7) 36. e4 {[%emt 0:00:15]} Kf7 {[%emt 0:00:28] And now ...Nd4+ would win.} 37. Nxf5 {[%emt 0:00:01]} Nxf4+ {[%emt 0:00:01]} 38. Ke3 {[%emt 0:00:02]} Ne6 {[%emt 0:00:02]} 39. Nd6+ {[%emt 0:00:16]} Ke7 {[%emt 0:00:02]} 40. Nf5+ {[%emt 0:00:02]} Kf7 $1 {[%emt 0:00:01]} 41. Nd6+ {[%emt 0:00:04]} Ke7 $1 {[%emt 0:00:01]} 42. Nb5 {[%emt 0:00:01]} Rd7 {[%emt 0:00:09]} (42... Rd1 $16 {keeps fighting.}) 43. Nc3 {[%emt 0:00:11]} Nc5 $2 {[%emt 0:00:04]} (43... Rd8 {might work better.} 44. Nb5 Rd1) 44. Nd5+ {[%emt 0:00:03]} Kf7 {[%emt 0:00:01]} 45. a5 {[%emt 0:00:01]} Ne6 {[%emt 0:00:06]} 46. axb6 {[%emt 0:00:02]} axb6 {[%emt 0:00:00]} 47. Rxb6 {[%emt 0:00:02]} Ra7 {[%emt 0:00:01]} 48. Rc6 {[%emt 0:00:08]} Ra3+ {[%emt 0:00:02]} 49. Rc3 {[%emt 0:00:00]} Ra4 {[%emt 0:00:01]} 50. f4 {[%emt 0:00:02][%cal Bf2f4,Bf4f5][%mdl 32]} Ra5 {[%emt 0:00:06]} (50... Kg7 $142 51. Rc8 Ra3+ 52. Nc3 Ra7) 51. f5 {[%emt 0:00:03]} Nc5 {[%emt 0:00:01]} 52. Kf4 {[%emt 0:00:13]} (52. Kd4 $142 Nd7 53. Rc7 Ra4+ 54. Ke3 Ra3+ 55. Kf4) 52... Nd7 {[%emt 0:00:02]} 53. Rc7 {[%emt 0:00:01]} Ke8 {[%emt 0:00:01]} 54. Rc8+ {[%emt 0:00:01]} (54. f6 $142 Nc5 55. Kf5) 54... Kf7 {[%emt 0:00:00]} 55. Rd8 {[%emt 0:00:03]} (55. Rc6 $142 Nc5 56. e5 Nd3+ 57. Ke4 Nc5+ 58. Ke3) 55... Nc5 {[%emt 0:00:02]} 56. Rc8 $2 {[%emt 0:00:10]} (56. Rh8 $18) 56... Nd3+ $2 {[%emt 0:00:01][%mdl 8192]} (56... Nd7 $11 57. Rc7 Ke8) 57. Ke3 {[%emt 0:00:02]} Ne5 {[%emt 0:00:01]} 58. Rc7+ {[%emt 0:00:00]} Kf8 {[%emt 0:00:01]} 59. Kf4 {[%emt 0:00:04]} Nf7 {[%emt 0:00:02]} 60. f6 {[%emt 0:00:02] White threatens Rc8+ and mate.} Nd6 {[%emt 0:00:02] Prevents Rc8+.} 61. Ke5 {[%emt 0:00:04]} Nf7+ {[%emt 0:00:01]} 62. Ke6 {[%emt 0:00:01] Rc8+ would kill now.} Ng5+ {[%emt 0:00:01] [#]} 63. Kf5 $1 {[%emt 0:00:01]} Nf7 {[%emt 0:00:00]} 64. Rc8+ {[%emt 0:00:01] Weighted Error Value: White=0.56/Black=0.35} 1-0